fUSD/lending_fUSD_20240416
["ID","MTS","AMOUNT","RATE_DAILY","PERIOD"]
[322743186,1713237043577,-18968.3723863,0.00020493,2]
[322743187,1713237043586,-16405.8390943,0.00020493,2]
[322743188,1713237043596,-3528.26702456,0.00020497,2]
[322743189,1713237043605,-50450.50829958,0.00020497,2]
[322743190,1713237043614,-155.99840597,0.00020497,2]
[322743191,1713237043623,-3679.91672175,0.00020497,2]
[322743192,1713237043632,-301.23608311,0.00020498,2]
[322743193,1713237043641,-1170.18415687,0.00020498,2]
[322743194,1713237043650,-745.16325282,0.00020498,2]
[322743195,1713237043659,-185.15599964,0.00020498,2]
[322743196,1713237043668,-155.82989258,0.00020498,2]
[322743197,1713237043677,-5611.44790365,0.00020499,2]
[322743198,1713237043686,-62606.52508731,0.00020499,2]
[322743199,1713237043719,-4713.40000002,0.00020499,2]
[322743200,1713237043764,-13498.27885165,0.00020499,2]
[322743201,1713237043775,-551.43010328,0.00020499,2]
[322743210,1713237046274,-1795.36741921,0.00020499,2]
[322743213,1713237046405,-727.95,0.00020499,2]
[322743214,1713237046460,-3828.58167927,0.00020499,2]
[322743215,1713237046524,-2506.28482675,0.00020499,2]
[322743216,1713237047833,154.67,0.00017785,2]
[322743217,1713237198291,1000.0,0.00017643,2]
[322743218,1713237203437,200.0,0.00017643,2]
[322743219,1713237208429,500.0,0.00017643,2]
[322743220,1713237561592,154.67,0.00017043,2]
[322743221,1713237609522,-200.0,0.00018967,2]
[322743222,1713237609545,-1360.09,0.00018976,2]
[322743223,1713237609569,-153.72,0.00019183,2]
[322743224,1713237609594,-153.72,0.00019254,2]
[322743225,1713237609618,-3166.75829921,0.00019254,2]
[322743226,1713237609642,-153.72,0.00019326,2]
[322743227,1713237609667,-153.72,0.00019397,2]
[322743228,1713237609691,-153.72,0.00019468,2]
[322743229,1713237609714,-16603.5194,0.00019478,2]
[322743230,1713237609737,-153.72,0.0001954,2]
[322743231,1713237609761,-150.99,0.0001954,2]
[322743232,1713237609786,-389.88,0.00019547,2]
[322743233,1713237609809,-389.88,0.00019552,2]
[322743234,1713237609831,-389.88,0.00019557,2]
[322743235,1713237609855,-389.88,0.00019563,2]
[322743236,1713237609877,-389.88,0.00019568,2]
[322743237,1713237609900,-389.88,0.00019573,2]
[322743238,1713237609922,-186.36,0.00019578,2]
[322743239,1713237609946,-389.88,0.00019578,2]
[322743240,1713237609969,-389.88,0.00019583,2]
[322743241,1713237609992,-389.88,0.00019588,2]
[322743242,1713237610014,-389.88,0.00019593,2]
[322743243,1713237610036,-389.88,0.00019599,2]
[322743244,1713237610060,-389.88,0.00019604,2]
[322743245,1713237610083,-389.88,0.00019609,2]
[322743246,1713237610106,-153.72,0.00019611,2]
[322743247,1713237610130,-389.88,0.00019614,2]
[322743248,1713237610153,-389.88,0.00019619,2]
[322743249,1713237610176,-389.88,0.00019624,2]
[322743250,1713237610199,-389.88,0.00019629,2]
[322743251,1713237610223,-389.88,0.00019635,2]
[322743252,1713237610246,-389.88,0.0001964,2]
[322743253,1713237610270,-389.88,0.00019645,2]
[322743254,1713237610293,-153.72,0.00019683,2]
[322743255,1713237610317,-153.72,0.00019754,2]
[322743256,1713237610339,-500.0,0.0001978,2]
[322743257,1713237610361,-500.0,0.0001978,2]
[322743258,1713237610383,-153.72,0.00019825,2]
[322743259,1713237610406,-153.72,0.00019897,2]
[322743260,1713237610430,-153.72,0.00019968,2]
[322743261,1713237610454,-200.0,0.0002,7]
[322743262,1713237610714,-572.096537,0.0002,2]
[322743263,1713237610738,-8439.91,0.0002,2]
[322743264,1713237623255,-186.36,0.00019458,2]
[322743265,1713237623281,-1013.64,0.0002,2]
[322743273,1713238050313,154.67,0.00017481,2]
[322743280,1713238232398,-840.0,0.00019438,2]
[322743281,1713238232408,-906.39,0.00019469,2]
[322743282,1713238232417,-153.72,0.00019604,2]
[322743283,1713238232426,-1000.0,0.000197,2]
[322743284,1713238232435,-514.886884,0.00019726,2]
[322743285,1713238232444,-500.0,0.0001978,2]
[322743286,1713238232453,-200.0,0.000198,7]
[322743287,1713238232463,-500.0,0.000199,7]
[322743288,1713238232472,-546.45,0.0002,2]
[322743289,1713238232481,-1000.0,0.0002,2]
[322743290,1713238232491,-150.73382653,0.00020103,2]
[322743291,1713238232502,-1207.64325977,0.00020103,2]
[322743292,1713238232513,-301.44505381,0.00020103,2]
[322743293,1713238232524,-1338.38042941,0.00020103,2]
[322743294,1713238232532,-920.19,0.00020115,2]
[322743295,1713238232541,-153.72,0.00020115,2]
[322743296,1713238232550,-7748.26,0.000202,2]
[322743297,1713238232560,-999.99,0.000202,2]
[322743298,1713238232568,-700.0,0.000202,7]
[322743299,1713238232577,-8829.4626,0.000203,2]
[322743300,1713238232586,-1000.0,0.000203,7]
[322743301,1713238232595,-1000.0,0.000203,2]
[322743302,1713238232604,-2924.52894453,0.0002034,2]
[322743303,1713238232613,-2500.0,0.00020342,2]
[322743304,1713238232622,-172.15244484,0.0002035,2]
[322743305,1713238232631,-172.15244481,0.00020374,2]
[322743306,1713238232640,-594.2593,0.00020392,2]
[322743307,1713238232649,-255.8634,0.00020393,2]
[322743308,1713238232658,-172.15244481,0.00020399,2]
[322743309,1713238232667,-152.0633,0.00020399,2]
[322743310,1713238232679,-1000.0,0.00020399,2]
[322743311,1713238232688,-172.78207374,0.00020399,2]
[322743312,1713238232698,-3312.0,0.000204,3]
[322743313,1713238232706,-150.86072191,0.000204,2]
[322743314,1713238232719,-26.38147802,0.000204,2]
[322743316,1713238233338,-2401.13681457,0.000204,2]
[322743317,1713238233353,-1739.49974431,0.000204,2]
[322743318,1713238233364,-1000.0,0.000204,2]
[322743319,1713238233373,-410.50025569,0.000204,2]
[322743320,1713238233385,-589.49974431,0.000204,2]
[322743321,1713238233394,-1000.0,0.000204,2]
[322743322,1713238233403,-1072.0,0.000204,2]
[322743323,1713238233413,-1000.0,0.000204,2]
[322743324,1713238233422,-1000.0,0.000204,2]
[322743325,1713238233431,-1000.0,0.000204,2]
[322743326,1713238233441,-1000.0,0.000204,2]
[322743327,1713238233450,-1000.0,0.000204,2]
[322743328,1713238233462,-1000.0,0.000204,2]
[322743329,1713238233471,-1000.0,0.000204,2]
[322743330,1713238233480,-696.0,0.000204,2]
[322743331,1713238233489,-1000.0,0.000204,2]
[322743332,1713238233499,-916.0,0.000204,3]
[322743333,1713238233508,-1200.0,0.000204,7]
[322743334,1713238233517,-2924.52894444,0.00020402,2]
[322743335,1713238233526,-172.15244481,0.00020423,2]
[322743336,1713238233535,-47593.95051312,0.00020432,2]
[322743337,1713238233555,-405.20748901,0.00020432,2]
[322743338,1713238233566,-344.1262584,0.00020432,2]
[322743339,1713238233577,-3787.627386,0.00020432,2]
[322743340,1713238233589,-2672.05989256,0.00020432,2]
[322743341,1713238233627,-2928.75619804,0.00020432,2]
[322743342,1713238233669,-438.97877864,0.00020432,2]
[322743352,1713238238443,-222.19454884,0.00020364,2]
[322743353,1713238238453,-258.50317139,0.000204,2]
[322743354,1713238238501,-742.49682861,0.000204,2]
[322743355,1713238238510,-14445.50203038,0.00020432,2]
[322743356,1713238238521,-3777.57495373,0.00020432,2]
[322743357,1713238238532,-428.61941707,0.00020432,2]
[322743358,1713238238543,-315.19030927,0.00020432,2]
[322743359,1713238238554,-12671.83300845,0.00020432,2]
[322743360,1713238238610,-1220.20775906,0.00020432,2]
[322743361,1713238238622,-406.46916604,0.00020432,2]
[322743362,1713238238668,-4508.24719927,0.00020432,2]
[322743363,1713238238679,-154.23,0.00020432,2]
[322743364,1713238238688,-702.74472164,0.0002044,2]
[322743365,1713238238697,-11568.82075452,0.00020442,2]
[322743366,1713238238708,-692.79472096,0.00020442,2]
[322743367,1713238238730,-1425.94447234,0.00020442,2]
[322743368,1713238238740,-82256.79041122,0.00020442,2]
[322743369,1713238238751,-4167.01803681,0.00020445,2]
[322743370,1713238238762,-172.15244481,0.00020447,2]
[322743371,1713238238771,-1000.0,0.00020447,2]
[322743372,1713238238781,-154.23,0.00020448,2]
[322743374,1713238238790,-95944.35035904,0.00020449,2]
[322743376,1713238238799,-154.23,0.00020449,2]
[322743378,1713238238808,-702.74472164,0.0002045,2]
[322743380,1713238238817,-95944.35035904,0.00020458,2]
[322743382,1713238238826,-154.23,0.00020458,2]
[322743384,1713238238835,-95944.35035904,0.00020458,2]
[322743386,1713238238844,-95944.35035904,0.00020459,2]
[322743388,1713238238853,-702.74472164,0.00020462,2]
[322743390,1713238238862,-95944.35035904,0.00020464,2]
[322743392,1713238238871,-2924.52894444,0.00020464,2]
[322743394,1713238238880,-702.74472164,0.00020465,2]
[322743396,1713238238889,-800.0,0.00020466,2]
[322743398,1713238238898,-800.0,0.00020466,2]
[322743400,1713238238907,-3808.95190424,0.00020467,2]
[322743402,1713238238916,-95944.35035904,0.00020468,2]
[322743404,1713238238926,-217.29508633,0.00020471,2]
[322743406,1713238238935,-244.66210899,0.00020471,2]
[322743408,1713238238945,-261.71979978,0.00020471,2]
[322743410,1713238238954,-150.86072191,0.00020471,2]
[322743412,1713238238963,-95944.35035904,0.00020473,2]
[322743414,1713238238973,-702.74472164,0.00020476,2]
[322743416,1713238238982,-702.74472164,0.00020478,2]
[322743418,1713238238991,-702.74472164,0.00020484,2]
[322743420,1713238239000,-702.74472164,0.00020486,2]
[322743422,1713238239009,-154.23,0.00020488,2]
[322743424,1713238239018,-154.23,0.00020489,2]
[322743426,1713238239027,-154.23,0.00020489,2]
[322743428,1713238239036,-154.23,0.0002049,2]
[322743430,1713238239045,-154.23,0.0002049,2]
[322743432,1713238239054,-154.23,0.0002049,2]
[322743434,1713238239063,-4167.01803681,0.00020491,2]
[322743436,1713238239071,-702.74472164,0.00020492,2]
[322743438,1713238239080,-3203.3783228,0.00020496,2]
[322743440,1713238239089,-4215.8755717,0.00020496,2]
[322743442,1713238239098,-4386.1514717,0.00020496,2]
[322743444,1713238239107,-8456.4026032,0.00020496,2]
[322743446,1713238239117,-42731.6593499,0.00020496,2]
[322743448,1713238239125,-1000.0,0.00020498,2]
[322743450,1713238239135,-727.67577498,0.00020498,2]
[322743452,1713238239143,-500.0,0.00020498,2]
[322743454,1713238239153,-500.0,0.00020498,2]
[322743456,1713238239162,-500.0,0.00020498,2]
[322743458,1713238239171,-500.0,0.00020498,2]
[322743460,1713238239179,-500.0,0.00020498,2]
[322743462,1713238239188,-500.0,0.00020498,2]
[322743464,1713238239199,-500.0,0.00020498,2]
[322743466,1713238239208,-500.0,0.00020498,2]
[322743468,1713238239217,-500.0,0.00020498,2]
[322743470,1713238239227,-500.0,0.00020498,2]
[322743472,1713238239236,-500.0,0.00020498,2]
[322743474,1713238239244,-500.0,0.00020498,2]
[322743476,1713238239253,-500.0,0.00020498,2]
[322743478,1713238239262,-500.0,0.00020498,2]
[322743480,1713238239271,-500.0,0.00020498,2]
[322743482,1713238239281,-500.0,0.00020498,2]
[322743484,1713238239291,-500.0,0.00020498,2]
[322743486,1713238239300,-500.0,0.00020498,2]
[322743488,1713238239309,-500.0,0.00020498,2]
[322743490,1713238239318,-500.0,0.00020498,2]
[322743492,1713238239326,-500.0,0.00020498,2]
[322743494,1713238239336,-350.23360094,0.00020498,2]
[322743496,1713238239345,-500.0,0.00020498,2]
[322743498,1713238239353,-500.0,0.00020498,2]
[322743500,1713238239362,-500.0,0.00020498,2]
[322743502,1713238239371,-415218.1023155,0.00020499,2]
[322743504,1713238239380,-206.98170683,0.00020499,2]
[322743506,1713238239390,-4162.19933088,0.00020499,2]
[322743508,1713238239399,-2000.0,0.00020499,2]
[322743510,1713238239408,-200.0,0.00020499,2]
[322743512,1713238239416,-3000.0,0.00020499,2]
[322743514,1713238239425,-901.0,0.000205,2]
[322743516,1713238239434,-655880.6392686,0.000205,3]
[322743518,1713238239444,-150.0,0.000205,2]
[322743520,1713238239452,-150.0,0.000205,2]
[322743522,1713238239461,-6000.0,0.000205,3]
[322743524,1713238239471,-1000.0,0.000205,2]
[322743526,1713238239480,-150.0,0.000205,2]
[322743528,1713238239489,-200.0,0.000205,7]
[322743530,1713238239498,-250.0,0.000205,2]
[322743533,1713238239507,-250.0,0.000205,2]
[322743535,1713238239516,-250.0,0.000205,2]
[322743536,1713238239526,-386.2,0.000205,2]
[322743538,1713238239535,-2924.52894444,0.00020527,2]
[322743540,1713238239544,-3657.8050065,0.00020533,2]
[322743542,1713238239552,-4840.2272184,0.00020533,2]
[322743544,1713238239561,-5035.7201906,0.00020533,2]
[322743546,1713238239570,-9765.327056,0.00020533,2]
[322743548,1713238239579,-49345.8801314,0.00020533,2]
[322743551,1713238239588,-4167.01803681,0.00020536,2]
[322743552,1713238239597,-150.86072191,0.00020543,2]
[322743554,1713238239606,-2374.01275477,0.00020545,2]
[322743556,1713238239615,-155.51813378,0.00020545,2]
[322743559,1713238239624,-865.39796139,0.00020545,2]
[322743561,1713238239633,-619.08414125,0.00020546,2]
[322743563,1713238239641,-188.1344399,0.00020546,2]
[322743565,1713238239651,-571.7912846,0.00020546,2]
[322743566,1713238239660,-2000.0,0.00020546,2]
[322743568,1713238239671,-2000.0,0.00020546,2]
[322743570,1713238239680,-2000.0,0.00020546,2]
[322743571,1713238239689,-2000.0,0.00020546,2]
[322743572,1713238239698,-2000.0,0.00020546,2]
[322743573,1713238239707,-2000.0,0.00020546,2]
[322743574,1713238239716,-2000.0,0.00020546,2]
[322743575,1713238239726,-2000.0,0.00020546,2]
[322743576,1713238239734,-2000.0,0.00020546,2]
[322743577,1713238239743,-2000.0,0.00020546,2]
[322743578,1713238239755,-2000.0,0.00020546,2]
[322743579,1713238239766,-2000.0,0.00020546,2]
[322743580,1713238239775,-2000.0,0.00020546,2]
[322743581,1713238239783,-2000.0,0.00020546,2]
[322743582,1713238239792,-226.04885002,0.00020546,2]
[322743583,1713238239800,-442.4711004,0.00020546,2]
[322743584,1713238239809,-418.94609271,0.00020547,2]
[322743585,1713238239818,-500.0,0.00020547,2]
[322743586,1713238239827,-549.48231384,0.00020547,2]
[322743587,1713238239836,-500.02238856,0.00020547,2]
[322743588,1713238239845,-500.60275575,0.00020547,2]
[322743589,1713238239854,-176.42003152,0.00020547,2]
[322743590,1713238239862,-501.58539887,0.00020547,2]
[322743591,1713238239871,-501.3468342,0.00020547,2]
[322743592,1713238239880,-500.0,0.00020547,2]
[322743593,1713238239889,-500.20218436,0.00020547,2]
[322743594,1713238239898,-501.07035531,0.00020547,2]
[322743596,1713238239907,-500.0,0.00020547,2]
[322743597,1713238239916,-365.32582153,0.00020547,2]
[322743598,1713238239925,-501.37812489,0.00020547,2]
[322743599,1713238239934,-502.81336445,0.00020547,2]
[322743600,1713238239943,-500.90525471,0.00020547,2]
[322743601,1713238239952,-500.01811672,0.00020547,2]
[322743602,1713238239961,-500.29917496,0.00020547,2]
[322743603,1713238239970,-500.01843729,0.00020547,2]
[322743604,1713238239979,-228.62539919,0.00020547,2]
[322743605,1713238239988,-500.57371737,0.00020547,2]
[322743606,1713238239997,-500.0,0.00020547,2]
[322743607,1713238240006,-647.65741,0.00020547,2]
[322743608,1713238240015,-500.75709425,0.00020547,2]
[322743609,1713238240024,-501.38022131,0.00020547,2]
[322743610,1713238240034,-500.17241937,0.00020547,2]
[322743611,1713238240043,-501.69550734,0.00020547,2]
[322743612,1713238240052,-506.7974602,0.00020547,2]
[322743613,1713238240061,-501.64262443,0.00020547,2]
[322743614,1713238240070,-501.77803777,0.00020547,2]
[322743615,1713238240079,-217.60334407,0.00020547,2]
[322743616,1713238240088,-501.40752658,0.00020547,2]
[322743617,1713238240097,-500.0,0.00020547,2]
[322743618,1713238240106,-500.19763858,0.00020547,2]
[322743619,1713238240115,-502.1555945,0.00020547,2]
[322743620,1713238240124,-502.89245567,0.00020547,2]
[322743621,1713238240134,-226.40698677,0.00020547,2]
[322743622,1713238240372,-500.0,0.00020547,2]
[322743623,1713238240382,-500.0,0.00020547,2]
[322743624,1713238240391,-500.86399842,0.00020547,2]
[322743625,1713238240400,-500.0,0.00020547,2]
[322743626,1713238240409,-500.97942615,0.00020547,2]
[322743627,1713238240418,-500.0,0.00020547,2]
[322743629,1713238240428,-496.75442472,0.00020547,2]
[322743631,1713238240438,-500.0,0.00020547,2]
[322743633,1713238240446,-500.0,0.00020547,2]
[322743635,1713238240456,-501.04207287,0.00020547,2]
[322743636,1713238240465,-500.0,0.00020547,2]
[322743638,1713238240476,-502.19137758,0.00020547,2]
[322743640,1713238240485,-500.0,0.00020547,2]
[322743642,1713238240495,-501.13065299,0.00020547,2]
[322743644,1713238240504,-501.91239665,0.00020547,2]
[322743646,1713238240513,-500.0,0.00020547,2]
[322743648,1713238240523,-501.63687788,0.00020547,2]
[322743650,1713238240532,-501.75486409,0.00020547,2]
[322743652,1713238240541,-205.21178933,0.00020547,2]
[322743654,1713238240551,-500.0,0.00020547,2]
[322743655,1713238240560,-500.95012886,0.00020547,2]
[322743656,1713238240569,-320.90681947,0.00020547,2]
[322743657,1713238240578,-500.0,0.00020547,2]
[322743658,1713238240587,-501.59383633,0.00020547,2]
[322743659,1713238240597,-502.56848381,0.00020547,2]
[322743660,1713238240606,-504.95397431,0.00020547,2]
[322743661,1713238240614,-500.0,0.00020547,2]
[322743662,1713238240623,-500.0,0.00020547,2]
[322743663,1713238240632,-501.78467003,0.00020547,2]
[322743664,1713238240641,-502.16587037,0.00020547,2]
[322743665,1713238240650,-500.0,0.00020547,2]
[322743666,1713238240659,-502.13332198,0.00020547,2]
[322743667,1713238240672,-497.0,0.00020547,2]
[322743668,1713238240681,-500.61740533,0.00020547,2]
[322743669,1713238240690,-500.0,0.00020547,2]
[322743670,1713238240699,-500.0,0.00020547,2]
[322743671,1713238240708,-500.0,0.00020547,2]
[322743672,1713238240717,-500.0,0.00020547,2]
[322743673,1713238240728,-329.14675164,0.00020547,2]
[322743674,1713238240738,-500.0,0.00020547,2]
[322743675,1713238240750,-500.0,0.00020547,2]
[322743676,1713238240761,-257.54157836,0.00020547,2]
[322743677,1713238240771,-591.13,0.00020547,2]
[322743678,1713238240780,-591.13,0.00020547,2]
[322743679,1713238240789,-591.13,0.00020547,2]
[322743680,1713238240798,-591.13,0.00020547,2]
[322743681,1713238240806,-591.13,0.00020547,2]
[322743682,1713238240815,-591.13,0.00020547,2]
[322743683,1713238240825,-591.13,0.00020547,2]
[322743684,1713238240834,-591.13,0.00020547,2]
[322743685,1713238240843,-591.13,0.00020547,2]
[322743686,1713238240852,-591.13,0.00020547,2]
[322743687,1713238240863,-591.13,0.00020547,2]
[322743688,1713238240873,-591.13,0.00020547,2]
[322743689,1713238240882,-503.74894243,0.00020547,2]
[322743690,1713238240891,-591.13,0.00020547,2]
[322743691,1713238240900,-591.13,0.00020547,2]
[322743692,1713238240909,-591.13,0.00020547,2]
[322743693,1713238240918,-591.13,0.00020547,2]
[322743694,1713238240928,-591.13,0.00020547,2]
[322743695,1713238240936,-591.13,0.00020547,2]
[322743696,1713238240945,-500.0,0.00020547,2]
[322743697,1713238240954,-591.13,0.00020547,2]
[322743698,1713238240963,-591.13,0.00020547,2]
[322743699,1713238240973,-500.0,0.00020547,2]
[322743700,1713238240981,-591.13,0.00020547,2]
[322743701,1713238240990,-443.72495002,0.00020547,2]
[322743702,1713238240999,-591.13,0.00020547,2]
[322743703,1713238241008,-591.13,0.00020547,2]
[322743704,1713238241017,-591.32670985,0.00020547,2]
[322743705,1713238241026,-497.93535236,0.00020547,2]
[322743706,1713238241035,-502.3180698,0.00020547,2]
[322743707,1713238241045,-535.48075159,0.00020547,2]
[322743708,1713238241054,-570.56429355,0.00020547,2]
[322743709,1713238241064,-503.65555353,0.00020547,2]
[322743710,1713238241074,-500.0,0.00020547,2]
[322743711,1713238241083,-459.06107442,0.00020547,2]
[322743712,1713238241092,-504.56042279,0.00020547,2]
[322743713,1713238241101,-500.0,0.00020547,2]
[322743714,1713238241110,-500.91139111,0.00020547,2]
[322743715,1713238241119,-500.0,0.00020547,2]
[322743716,1713238241128,-500.0,0.00020547,2]
[322743717,1713238241138,-500.0,0.00020547,2]
[322743718,1713238241147,-500.0,0.00020547,2]
[322743719,1713238241156,-500.0,0.00020547,2]
[322743720,1713238241166,-502.58193782,0.00020547,2]
[322743721,1713238241175,-500.0,0.00020547,2]
[322743722,1713238241184,-500.0,0.00020547,2]
[322743723,1713238241193,-500.0,0.00020547,2]
[322743724,1713238241203,-500.0,0.00020547,2]
[322743725,1713238241212,-500.0,0.00020547,2]
[322743726,1713238241222,-500.0,0.00020547,2]
[322743727,1713238241235,-500.0,0.00020547,2]
[322743728,1713238241245,-251.46755709,0.00020547,2]
[322743729,1713238241254,-500.0,0.00020547,2]
[322743730,1713238241263,-500.0,0.00020547,2]
[322743731,1713238241273,-500.0,0.00020547,2]
[322743732,1713238241282,-500.0,0.00020547,2]
[322743733,1713238241291,-500.0,0.00020547,2]
[322743734,1713238241301,-520.22978075,0.00020547,2]
[322743735,1713238241310,-195.13755554,0.00020547,2]
[322743736,1713238241320,-500.0,0.00020547,2]
[322743737,1713238241329,-171.15684816,0.00020547,2]
[322743738,1713238241339,-500.0,0.00020547,2]
[322743739,1713238241348,-500.0,0.00020547,2]
[322743740,1713238241358,-250.31134042,0.00020547,2]
[322743741,1713238241367,-500.0,0.00020547,2]
[322743742,1713238241377,-447.75047182,0.00020547,2]
[322743743,1713238241387,-500.0,0.00020547,2]
[322743744,1713238241396,-193.980885,0.00020547,2]
[322743745,1713238241405,-1170.48,0.00020547,2]
[322743746,1713238241415,-502.45324603,0.00020547,2]
[322743747,1713238241425,-1170.48,0.00020547,2]
[322743748,1713238241436,-1170.48,0.00020547,2]
[322743749,1713238241446,-500.0,0.00020547,2]
[322743750,1713238241456,-500.0,0.00020547,2]
[322743751,1713238241465,-1170.48,0.00020547,2]
[322743752,1713238241477,-500.0,0.00020547,2]
[322743753,1713238241486,-1170.48,0.00020547,2]
[322743754,1713238241495,-497.25969556,0.00020547,2]
[322743755,1713238241505,-500.0,0.00020547,2]
[322743756,1713238241514,-1170.48,0.00020547,2]
[322743757,1713238241523,-500.0,0.00020547,2]
[322743758,1713238241532,-1170.48,0.00020547,2]
[322743759,1713238241541,-500.0,0.00020547,2]
[322743760,1713238241550,-1170.48,0.00020547,2]
[322743761,1713238241559,-500.0,0.00020547,2]
[322743762,1713238241568,-1170.48,0.00020547,2]
[322743763,1713238241577,-500.0,0.00020547,2]
[322743764,1713238241587,-1170.48,0.00020547,2]
[322743765,1713238241596,-500.0,0.00020547,2]
[322743766,1713238241605,-1170.48,0.00020547,2]
[322743767,1713238241614,-500.0,0.00020547,2]
[322743768,1713238241623,-1170.48,0.00020547,2]
[322743769,1713238241632,-525.44346404,0.00020547,2]
[322743770,1713238241641,-1170.48,0.00020547,2]
[322743771,1713238241651,-1170.48,0.00020547,2]
[322743772,1713238241660,-1170.48,0.00020547,2]
[322743773,1713238241669,-1170.48,0.00020547,2]
[322743774,1713238241679,-1170.48,0.00020547,2]
[322743775,1713238241688,-1170.48,0.00020547,2]
[322743776,1713238241697,-1170.48,0.00020547,2]
[322743777,1713238241706,-1170.48,0.00020547,2]
[322743778,1713238241715,-500.0,0.00020547,2]
[322743779,1713238241725,-1170.48,0.00020547,2]
[322743780,1713238241734,-500.0,0.00020547,2]
[322743781,1713238241743,-1170.48,0.00020547,2]
[322743782,1713238241753,-1170.48,0.00020547,2]
[322743783,1713238241763,-324.0747041,0.00020547,2]
[322743784,1713238241772,-1170.55604209,0.00020547,2]
[322743785,1713238241781,-500.0,0.00020547,2]
[322743786,1713238241790,-502.41324235,0.00020547,2]
[322743787,1713238241799,-500.0,0.00020547,2]
[322743788,1713238241808,-500.0,0.00020547,2]
[322743789,1713238241818,-500.0,0.00020547,2]
[322743790,1713238241827,-500.0,0.00020547,2]
[322743791,1713238241836,-500.0,0.00020547,2]
[322743792,1713238241845,-500.0,0.00020547,2]
[322743793,1713238241855,-500.0,0.00020547,2]
[322743794,1713238241864,-500.0,0.00020547,2]
[322743795,1713238241873,-500.0,0.00020547,2]
[322743796,1713238241882,-500.61185687,0.00020547,2]
[322743797,1713238241892,-500.0,0.00020547,2]
[322743798,1713238241901,-500.0,0.00020547,2]
[322743799,1713238241910,-500.0,0.00020547,2]
[322743800,1713238241920,-633.50490417,0.00020547,2]
[322743801,1713238241929,-502.1516174,0.00020547,2]
[322743802,1713238241938,-500.0,0.00020547,2]
[322743803,1713238241948,-500.0,0.00020547,2]
[322743804,1713238241958,-500.0,0.00020547,2]
[322743805,1713238241970,-500.76827053,0.00020547,2]
[322743806,1713238241979,-500.0,0.00020547,2]
[322743807,1713238241989,-500.0,0.00020547,2]
[322743808,1713238241998,-500.0,0.00020547,2]
[322743809,1713238242007,-500.0,0.00020547,2]
[322743810,1713238242017,-500.0,0.00020547,2]
[322743811,1713238242026,-500.0,0.00020547,2]
[322743812,1713238242035,-500.0,0.00020547,2]
[322743813,1713238242045,-500.0,0.00020547,2]
[322743814,1713238242054,-500.0,0.00020547,2]
[322743815,1713238242064,-436.11909525,0.00020547,2]
[322743816,1713238242073,-500.0,0.00020547,2]
[322743817,1713238242083,-500.0,0.00020547,2]
[322743818,1713238242092,-500.0,0.00020547,2]
[322743819,1713238242101,-383.84442896,0.00020547,2]
[322743820,1713238242111,-500.0,0.00020547,2]
[322743821,1713238242121,-500.0,0.00020547,2]
[322743822,1713238242130,-500.0,0.00020547,2]
[322743823,1713238242139,-500.0,0.00020547,2]
[322743824,1713238242149,-500.0,0.00020547,2]
[322743825,1713238242158,-502.64835515,0.00020547,2]
[322743826,1713238242167,-502.7024497,0.00020547,2]
[322743827,1713238242176,-583.9660855,0.00020547,2]
[322743828,1713238242185,-500.0,0.00020547,2]
[322743829,1713238242194,-500.0,0.00020547,2]
[322743830,1713238242203,-500.0,0.00020547,2]
[322743831,1713238242212,-500.0,0.00020547,2]